bitfinex-derivatives/quotes_SOLF0:USTF0_20260220
["timestamp","ask_amount","ask_price","bid_price","bid_amount"]
[1771553300546,11.07333065,83.206,83.164,14.37999449]
[1771553326561,11.07333065,83.206,83.153,10.8292]
[1771553326771,11.07333065,83.206,83.077,178.0]
[1771553326772,10.39443208,83.179,83.137,14.82455702]
[1771553327868,10.37595786,83.209,83.151,14.82455702]
[1771553328261,10.37595786,83.209,83.161,14.82455702]
[1771553329771,10.8222,83.208,83.161,14.82455702]
[1771553329971,10.8919277,83.207,83.161,14.82455702]
[1771553333976,10.68190022,83.199,83.161,14.82455702]
[1771553336278,10.8235,83.198,83.161,14.82455702]
[1771553336470,10.66789067,83.197,83.161,14.82455702]
[1771553337678,10.8248,83.188,83.141,14.82455702]
[1771553337877,10.65076919,83.179,83.131,14.82455702]
[1771553338079,10.69149672,83.169,83.131,14.82455702]
[1771553340577,10.8275,83.168,83.131,14.82455702]
[1771553340778,10.82309119,83.159,83.126,461.37457697]
[1771553341170,10.80694295,83.156,83.126,461.37457697]
[1771553341382,10.80694295,83.156,83.126,476.19913399]
[1771553341580,3.12142735,83.16,83.127,14.82455702]
[1771553341875,10.80694295,83.158,83.113,14.82455702]
[1771553342080,10.4675105,83.149,83.113,14.82455702]
[1771553342281,3.12142735,83.17,83.121,14.08939883]
[1771553342576,10.46760586,83.169,83.121,14.08939883]
[1771553345882,9.69804117,83.159,83.121,14.08939883]
[1771553346577,3.12142735,83.15,83.101,14.08939883]
[1771553346782,9.93545567,83.149,83.101,14.08939883]
[1771553347682,10.8302,83.147,83.101,14.08939883]
[1771553348279,3.12142735,83.15,83.101,14.08939883]
[1771553348475,13.03526631,83.16,83.111,14.0334042]
[1771553348676,9.91383896,83.159,83.111,14.0334042]
[1771553349087,3.12142735,83.16,83.111,14.0334042]
[1771553349878,3.12142735,83.18,83.121,14.0334042]
[1771553350078,10.38706707,83.179,83.121,14.0334042]
[1771553350684,3.12142735,83.17,83.121,14.0334042]
[1771553350881,13.94862735,83.17,83.121,14.0334042]
[1771553351187,3.12142735,83.16,83.121,14.0334042]
[1771553352885,10.23001824,83.169,83.121,14.0334042]
[1771553353690,10.27578095,83.166,83.121,14.0334042]
[1771553353888,3.12142735,83.17,83.121,14.0334042]
[1771553355781,10.39910435,83.149,83.094,14.0334042]
[1771553355985,10.39910435,83.149,83.101,14.0334042]
[1771553357386,3.12142735,83.14,83.101,14.0334042]
[1771553357985,3.12142735,83.15,83.101,14.0334042]
[1771553358491,10.829,83.156,83.101,14.0334042]
[1771553358792,3.12142735,83.16,83.101,14.0334042]
[1771553358793,10.8295,83.152,83.101,14.0334042]
[1771553359484,40.34885515,83.194,83.087,14.0334042]
[1771553359485,3.12142735,83.13,83.087,14.0334042]
[1771553359790,10.46240631,83.133,83.087,14.0334042]
[1771553362491,10.46240631,83.133,83.09,3.12142735]
[1771553362696,10.46240631,83.133,83.091,14.0334042]
[1771553363191,3.12142735,83.14,83.091,14.0334042]
[1771553363387,13.62961704,83.14,83.091,14.0334042]
[1771553363997,10.49571239,83.132,83.091,14.0334042]
[1771553364999,10.49571239,83.122,83.071,14.0334042]
[1771553366998,10.49571239,83.122,83.072,10.8399]
[1771553367200,10.49571239,83.122,83.073,14.0334042]
[1771553370306,10.49571239,83.122,83.075,14.0334042]
[1771553371802,10.49571239,83.122,83.077,10.8392]
[1771553372001,10.49571239,83.122,83.081,14.0334042]
[1771553385617,10.49571239,83.122,83.083,13.95167432]
[1771553386511,10.49571239,83.122,83.084,10.8383]
[1771553386912,10.49571239,83.122,83.085,13.95167432]
[1771553387519,3.1273889,83.13,83.085,13.95167432]
[1771553387711,10.8309,83.142,83.101,13.95167432]
[1771553387915,9.90838125,83.141,83.101,13.95167432]
[1771553388117,9.89917791,83.139,83.101,13.95167432]
[1771553390717,9.92582628,83.138,83.101,13.95167432]
[1771553392015,9.97053768,83.129,83.091,13.95167432]
[1771553392922,9.97053768,83.127,83.091,13.95167432]
[1771553401931,9.60870779,83.138,83.091,13.95167432]
[1771553402232,9.60870779,83.148,83.091,13.95167432]
[1771553402428,9.60870779,83.148,83.101,13.81850177]
[1771553403829,9.44558235,83.145,83.101,13.81850177]
[1771553404833,20.26872907,83.144,83.101,13.81850177]
[1771553405331,9.42967684,83.143,83.101,13.81850177]
[1771553406233,20.26037684,83.143,83.101,13.81850177]
[1771553406825,10.8307,83.143,83.101,13.81850177]
[1771553407031,9.4160069,83.142,83.101,13.81850177]
[1771553408534,3.1273889,83.15,83.101,13.81850177]
[1771553408936,12.50191958,83.15,83.101,13.81850177]
[1771553409135,9.34939537,83.149,83.101,13.81850177]
[1771553411939,9.34939537,83.149,83.102,10.836]
[1771553412138,9.34939537,83.149,83.103,13.48679011]
[1771553416843,9.21328416,83.147,83.103,13.48679011]
[1771553417344,12.34797272,83.14,83.103,13.48679011]
[1771553418443,9.22058382,83.14,83.103,13.48679011]
[1771553429655,12.34797272,83.14,83.103,13.48679011]
[1771553430852,9.31705063,83.139,83.103,13.48679011]
[1771553431048,9.28484858,83.138,83.089,13.48679011]
[1771553431245,12.41223748,83.13,83.089,13.48679011]
[1771553432855,9.26502015,83.129,83.089,13.48679011]
[1771553434355,9.32239562,83.138,83.091,13.48679011]
[1771553435853,3.1273889,83.13,83.091,13.48679011]
[1771553441659,9.14281307,83.136,83.091,13.48679011]
[1771553442464,8.97659013,83.127,83.091,13.48679011]
[1771553442762,8.97659013,83.119,83.074,13.26715387]
[1771553443662,8.99809821,83.117,83.074,13.26715387]
[1771553446563,8.78038239,83.113,83.074,13.26715387]
[1771553446959,8.78038239,83.109,83.074,13.26715387]
[1771553453675,7.57485582,83.107,83.064,13.26715387]
[1771553459273,10.8357,83.105,83.064,13.26715387]
[1771553460573,7.57485582,83.107,83.064,13.26715387]
[1771553460773,3.12820212,83.13,83.081,13.26715387]
[1771553461180,7.39364357,83.135,83.081,13.26715387]
[1771553462582,3.12820212,83.13,83.081,13.26715387]
[1771553462775,10.8325,83.129,83.082,13.74461811]
[1771553464280,7.23513128,83.128,83.082,13.74461811]
[1771553465681,7.23513128,83.128,83.054,459.27890915]
[1771553465682,7.23142252,83.109,83.072,13.74461811]
[1771553466680,10.8353,83.108,83.072,13.74461811]
[1771553470884,7.47799959,83.107,83.072,13.74461811]
[1771553471285,3.12820212,83.1,83.072,13.74461811]
[1771553474286,3.12820212,83.12,83.072,13.74461811]
[1771553475688,3.12820212,83.12,83.075,12.64574328]
[1771553476693,8.02581004,83.115,83.075,12.64574328]
[1771553476893,9.12619837,83.158,83.064,10.8409]
[1771553476894,3.12820212,83.1,83.064,12.64574328]
[1771553478395,10.8357,83.104,83.064,12.64574328]
[1771553483601,10.8352,83.108,83.064,12.64574328]
[1771553483894,9.12619837,83.15,83.064,12.64574328]
[1771553483895,8.00459327,83.119,83.065,12.64574328]
[1771553484802,7.99418369,83.115,83.065,12.64574328]
[1771553485700,7.98344043,83.112,83.069,12.64574328]
[1771553486294,7.98344043,83.112,83.071,12.64574328]
[1771553486905,7.98344043,83.112,83.073,12.64574328]
[1771553487099,3.12820212,83.11,83.073,12.64574328]
[1771553489006,3.12820212,83.11,83.074,10.8395]
[1771553489306,7.93378371,83.099,83.055,12.64574328]
[1771553489605,7.93378371,83.079,83.053,26.49547942]
[1771553490198,7.93378371,83.079,83.043,12.64574328]
[1771553491206,10.8391,83.078,83.043,12.64574328]
[1771553493907,7.54780875,83.069,83.031,12.64574328]
[1771553494704,10.8395,83.076,83.031,12.64574328]
[1771553495607,10.8402,83.07,83.031,12.64574328]
[1771553496809,10.8402,83.07,83.041,13.25038837]
[1771553497308,10.8389,83.08,83.041,13.25038837]
[1771553497503,13.96710212,83.08,83.041,13.25038837]
[1771553501010,21.14576032,83.08,83.041,13.25038837]
[1771553501211,18.0179582,83.077,83.041,13.25038837]
[1771553504712,7.1941997,83.071,83.041,13.25038837]
[1771553505009,7.1941997,83.069,83.021,13.25038837]
[1771553506415,45.2101592,83.125,83.021,13.25038837]
[1771553506416,7.17896188,83.059,83.021,13.25038837]
[1771553506815,7.17896188,83.055,83.021,13.25038837]
[1771553518826,7.17896188,83.055,83.021,13.25038837]
[1771553520325,10.8421,83.056,83.021,13.25038837]
[1771553533735,10.8423,83.054,83.021,13.25038837]
[1771553534932,17.38853477,83.054,83.021,13.25038837]
[1771553538640,10.8423,83.054,83.021,13.25038837]
[1771553539647,10.8431,83.048,83.021,13.25038837]
[1771553547060,6.58626902,83.04,83.007,12.95911968]
[1771553547956,3.1316975,83.05,83.007,12.95911968]
[1771553547957,6.56879436,83.049,83.007,12.95911968]
[1771553549851,17.41179436,83.049,83.007,12.95911968]
[1771553550055,6.8008415,83.048,83.007,12.95911968]
[1771553560061,17.70334048,83.047,83.007,12.95911968]
[1771553562069,6.83421459,83.046,83.007,12.95911968]
[1771553562268,6.83421459,83.043,83.007,12.95911968]
[1771553562566,21.6785,83.078,83.007,12.95911968]
[1771553562567,6.83421459,83.039,83.007,12.95911968]
[1771553563571,6.83032063,83.034,83.001,13.53581812]
[1771553564767,10.8451,83.032,83.001,13.53581812]
[1771553564974,6.82666335,83.031,83.001,13.53581812]
[1771553565265,10.8464,83.022,82.991,13.53581812]
[1771553565470,6.58675964,83.021,82.991,13.53581812]
[1771553566872,6.58292876,83.007,82.975,13.53581812]
[1771553567374,9.71374684,83.0,82.961,13.53581812]
[1771553567769,6.57861994,83.0,82.961,13.53581812]
[1771553572171,6.67626642,82.999,82.961,13.53581812]
[1771553572478,6.67626642,82.997,82.961,13.53581812]
[1771553572977,3.1351269,82.99,82.95,13.53581812]
[1771553573176,6.97635296,82.989,82.95,13.53581812]
[1771553573681,6.97635296,82.988,82.95,13.53581812]
[1771553574777,6.97285566,82.984,82.95,13.53581812]
[1771553574976,21.6886,83.039,82.934,460.68223551]
[1771553574977,6.96959225,83.019,82.971,13.53581812]
[1771553575375,7.00914758,83.006,82.971,13.53581812]
[1771553575576,7.00914758,83.006,82.953,10.8554]
[1771553575577,7.00914758,83.006,82.961,13.53581812]
[1771553576073,10.8499,82.996,82.961,13.53581812]
[1771553576481,7.00587758,82.995,82.961,13.53581812]
[1771553581075,10.8501,82.994,82.961,13.53581812]
[1771553583287,7.00587758,82.995,82.961,13.53581812]
[1771553584985,7.13120782,82.989,82.951,12.55967668]
[1771553587883,7.13120782,82.989,82.92,71.0]
[1771553587884,7.25584576,82.979,82.935,12.34784675]
[1771553588376,7.25278825,82.969,82.935,12.34784675]
[1771553588979,7.25278825,82.969,82.924,25.82760221]
[1771553589380,7.25278825,82.969,82.924,38.17544896]
[1771553589684,7.25278825,82.969,82.924,12.34784675]
[1771553590282,10.3985821,82.96,82.924,12.34784675]
[1771553590986,7.2634552,82.959,82.918,12.34784675]
[1771553591283,3.1351269,82.94,82.901,12.34784675]
[1771553591681,10.55184671,82.94,82.901,12.34784675]
[1771553591878,10.55184671,82.94,82.868,2.0984081]
[1771553591879,7.41671981,82.919,82.873,12.34784675]
[1771553592082,7.41671981,82.919,82.828,29.41474666]
[1771553592083,3.1351269,82.93,82.881,12.34784675]
[1771553592379,3.1351269,82.93,82.882,12.34784675]
[1771553593378,7.37097033,82.929,82.882,12.34784675]
[1771553595881,3.1351269,82.92,82.883,12.34784675]
[1771553601189,3.1351269,82.91,82.883,12.34784675]
[1771553601491,8.25735457,82.91,82.873,12.34784675]
[1771553601684,11.39248147,82.91,82.873,12.34784675]
[1771553602691,8.25488439,82.909,82.875,10.8656]
[1771553604092,8.19847152,82.899,82.867,10.8667]
[1771553605485,8.19847152,82.899,82.868,12.34784675]
[1771553607388,3.1351269,82.91,82.87,12.34784675]
[1771553608797,3.1351269,82.91,82.872,12.34784675]
[1771553609193,8.3612883,82.899,82.851,12.34784675]
[1771553609995,8.3612883,82.899,82.87,10.8662]
[1771553610593,11.49414936,82.91,82.87,23.21404675]
[1771553610897,8.35902246,82.909,82.87,23.21404675]
[1771553612091,8.35902246,82.909,82.872,10.866]
[1771553612293,8.35902246,82.909,82.872,23.21384675]
[1771553617101,8.16652002,82.889,82.841,13.30608026]
[1771553617604,8.16652002,82.889,82.85,13.30608026]
[1771553617795,3.1351269,82.88,82.849,10.869]
[1771553618001,8.16652002,82.879,82.849,10.869]
[1771553618197,8.16652002,82.879,82.841,10.87]
[1771553620205,3.1351269,82.87,82.838,13.30608026]
[1771553621099,8.23184046,82.891,82.843,13.30608026]
[1771553621298,3.1351269,82.89,82.843,13.30608026]
[1771553622101,3.1351269,82.9,82.854,13.30608026]
[1771553623404,8.11369569,82.889,82.854,10.8684]
[1771553624303,3.1351269,82.89,82.862,13.30608026]
[1771553624504,3.1351269,82.9,82.862,13.30608026]
[1771553624704,8.11176338,82.899,82.862,13.30608026]
[1771553625806,8.11176338,82.899,82.863,10.8672]
[1771553626101,3.14528553,82.89,82.863,10.8672]
[1771553627405,3.14528553,82.89,82.851,24.17478026]
[1771553627600,3.14528553,82.88,82.851,24.17478026]
[1771553628001,7.84049177,82.889,82.853,10.8685]
[1771553628596,7.84049177,82.889,82.852,13.30608026]
[1771553628597,7.83887166,82.9,82.854,13.30608026]
[1771553628798,7.83887166,82.909,82.854,13.30608026]
[1771553629005,3.14528553,82.89,82.854,13.30608026]
[1771553629205,11.00152953,82.89,82.854,13.30608026]
[1771553629801,3.14528553,82.89,82.859,13.30608026]
[1771553630509,3.14528553,82.92,82.871,13.30608026]
[1771553631010,7.85463743,82.923,82.887,13.30608026]
[1771553631210,3.14528553,82.93,82.887,13.30608026]
[1771553632108,3.14528553,82.93,82.89,24.16978026]
[1771553632310,7.59585362,82.929,82.89,24.16978026]
[1771553632609,7.59585362,82.919,82.89,10.8637]
[1771553633909,7.59585362,82.919,82.896,10.8628]
[1771553634110,7.59585362,82.919,82.877,13.30608026]
[1771553634512,7.59585362,82.919,82.895,10.863]
[1771553635610,3.14528553,82.92,82.895,10.863]
[1771553637314,9.42183561,82.92,82.888,10.8639]
[1771553639818,9.42183561,82.92,82.892,10.8634]
[1771553641212,9.40575622,82.93,82.894,24.16908026]
[1771553641414,9.40575622,82.93,82.895,13.30608026]
[1771553642109,9.16558296,82.951,82.895,13.30608026]
[1771553642308,12.24724074,82.974,82.906,12.59885885]
[1771553642510,12.24724074,82.969,82.921,12.59885885]
[1771553642717,3.14528553,82.96,82.921,12.59885885]
[1771553643319,12.24724074,82.969,82.921,12.59885885]
[1771553644519,12.24724074,82.969,82.93,12.59885885]
[1771553644715,3.14528553,82.98,82.93,12.59885885]
[1771553645021,3.14528553,82.98,82.93,15.74414438]
[1771553645420,3.14528553,82.98,82.889,36.11]
[1771553645421,3.14528553,82.96,82.919,12.59885885]
[1771553646116,3.14528553,82.96,82.929,12.59885885]
[1771553646324,15.39252627,82.97,82.929,12.59885885]
[1771553647224,3.14528553,82.97,82.929,12.59885885]
[1771553647425,3.14528553,82.98,82.934,12.77149443]
[1771553648724,3.14528553,82.98,82.939,23.62869443]
[1771553649022,3.14528553,82.98,82.94,12.77149443]
[1771553649824,3.14528553,82.99,82.942,12.77149443]
[1771553650725,3.14528553,82.99,82.952,12.77149443]
[1771553652925,3.14528553,83.0,82.955,12.77149443]
[1771553654632,10.8491,83.002,82.955,12.77149443]
[1771553655027,3.14528553,83.0,82.955,12.77149443]
[1771553655328,10.8495,82.999,82.955,12.77149443]
[1771553655532,21.6889,83.038,82.955,12.77149443]
[1771553655533,3.14528553,82.98,82.955,12.77149443]
[1771553657330,27.3462298,82.99,82.955,12.77149443]
[1771553658629,3.14528553,82.98,82.943,12.77149443]
[1771553659230,3.14528553,82.98,82.944,10.8566]
[1771553659430,3.14528553,82.98,82.945,12.77149443]
[1771553660831,3.14528553,82.98,82.947,12.77149443]
[1771553664835,16.4955298,82.98,82.947,12.77149443]
[1771553666134,3.14528553,82.98,82.947,12.77149443]
[1771553672037,10.8509,82.988,82.947,12.77149443]
[1771553673234,3.14528553,82.99,82.953,12.77149443]
[1771553673938,3.14528553,82.99,82.954,10.8552]
[1771553674131,3.14528553,82.99,82.955,12.77149443]
[1771553676941,3.14528553,82.99,82.956,10.855]
[1771553677540,3.14528553,82.99,82.956,23.20565238]
[1771553677743,3.14528553,82.99,82.958,10.8547]
[1771553680448,3.14528553,82.99,82.959,12.35065238]
[1771553687950,3.13798597,82.99,82.959,12.35065238]
[1771553689949,13.1319068,82.989,82.959,12.35065238]
[1771553690157,3.13798597,82.97,82.945,12.35065238]
[1771553690558,10.8514,82.984,82.945,12.35065238]
[1771553691059,16.26989277,83.0,82.945,12.35065238]
[1771553691260,10.8497,82.997,82.956,12.35065238]
[1771553692759,10.8497,82.997,82.958,10.8547]
[1771553692962,10.8497,82.997,82.959,12.35065238]
[1771553700260,13.1319068,83.008,82.96,12.35065238]
[1771553701467,13.1319068,83.008,82.95,3.13798597]
[1771553701468,13.1319068,83.008,82.963,12.35065238]
[1771553701871,13.1319068,83.008,82.964,10.854]
[1771553702064,13.1319068,83.008,82.965,12.35065238]
[1771553702263,10.8481,83.009,82.965,12.35065238]
[1771553702568,3.13798597,83.02,82.975,13.12192147]
[1771553703667,3.13798597,83.02,82.976,10.8523]
[1771553703867,3.13798597,83.02,82.977,13.12192147]
[1771553704066,3.13798597,83.02,82.976,10.8523]
[1771553704067,10.846,83.026,82.981,13.12192147]
[1771553705776,10.846,83.026,82.984,13.12192147]
[1771553706269,12.44788884,83.037,82.94,71.0]
[1771553706270,12.44788884,82.989,82.95,13.12192147]
[1771553706476,3.13798597,82.97,82.922,13.12192147]
[1771553706864,3.13798597,82.97,82.93,13.24387435]
[1771553707070,3.13798597,82.99,82.941,13.24387435]
[1771553708673,3.13798597,82.99,82.945,13.24387435]
[1771553709673,3.13798597,82.99,82.946,10.8563]
[1771553710173,3.13798597,82.99,82.947,13.24387435]
[1771553711573,10.8497,82.998,82.951,13.24387435]
[1771553711768,3.13798597,83.0,82.951,13.24387435]
[1771553712073,10.8484,83.008,82.951,13.24387435]
[1771553712675,10.8484,83.008,82.96,13.24387435]
[1771553713375,3.13798597,83.01,82.962,13.24387435]
[1771553713775,13.53034158,83.014,82.962,13.24387435]
[1771553713776,3.13798597,83.0,82.962,13.24387435]
[1771553714477,3.13798597,83.0,82.965,13.24387435]
[1771553715079,3.13798597,83.0,82.966,10.8537]
[1771553715276,3.13798597,83.0,82.967,13.24387435]
[1771553715878,3.13798597,83.0,82.968,10.8534]
[1771553716081,3.13798597,83.0,82.969,13.24387435]
[1771553717675,3.13798597,83.0,82.971,13.24387435]
[1771553719083,3.13798597,82.99,82.961,13.24387435]
[1771553719486,16.66832755,83.0,82.961,13.24387435]
[1771553719986,16.66832755,83.0,82.962,10.8542]
[1771553720182,16.66832755,83.0,82.963,13.24387435]
[1771553721783,16.66832755,83.0,82.967,10.8535]
[1771553722085,16.66832755,83.0,82.963,13.24387435]
[1771553722282,3.13798597,82.99,82.963,13.24387435]
[1771553723380,3.13798597,82.99,82.964,10.854]
[1771553723984,16.66832755,83.0,82.964,10.854]
[1771553724489,16.66832755,83.0,82.964,24.09787435]
[1771553724694,3.13798597,83.0,82.971,13.24387435]
[1771553725789,16.66832755,83.0,82.958,13.24387435]
[1771553727579,13.53034158,83.01,82.973,13.24387435]
[1771553727791,3.13798597,83.01,82.973,13.24387435]
[1771553727989,13.53034158,83.018,82.973,13.24387435]
[1771553728488,3.13798597,83.02,82.973,13.24387435]
[1771553728684,3.13798597,83.02,82.984,13.24387435]
[1771553729189,16.66832755,83.02,82.984,13.24387435]
[1771553729390,3.13798597,83.01,82.978,10.8521]
[1771553730090,3.13798597,83.01,82.978,24.09597435]
[1771553731489,3.13798597,83.01,82.984,10.8513]
[1771553733490,16.66832755,83.02,82.984,10.8513]
[1771553733891,16.66832755,83.01,82.961,13.24387435]
[1771553735687,16.66832755,83.01,82.97,13.24387435]
[1771553736996,13.53034158,83.01,82.97,13.24387435]
[1771553737395,13.53034158,83.01,82.97,16.38186032]
[1771553737694,13.53034158,83.01,82.974,10.8527]
[1771553737895,13.53034158,83.01,82.975,10.9134175]
[1771553738397,3.13798597,83.02,82.977,10.9134175]
[1771553738594,14.07411759,83.03,82.977,10.9134175]
[1771553738999,10.93613162,83.029,82.985,10.9134175]
[1771553740797,10.93613162,83.029,82.987,10.851]
[1771553741200,10.93613162,83.029,82.987,21.7644175]
[1771553741502,10.93613162,83.027,82.987,10.9134175]
[1771553742001,10.93613162,83.019,82.987,10.9134175]
[1771553742798,10.93613162,83.019,82.949,71.0]
[1771553742799,3.13798597,83.01,82.971,10.9134175]
[1771553742994,10.93613162,83.009,82.971,10.9134175]
[1771553743799,10.93613162,83.009,82.977,10.8523]
[1771553746802,10.93613162,83.009,82.978,10.9134175]
[1771553747201,10.93613162,83.019,82.978,10.9134175]
[1771553747903,10.93613162,83.019,82.983,10.9134175]
[1771553752008,10.93613162,83.019,82.986,10.9134175]
[1771553756107,10.93613162,83.019,82.987,10.851]
[1771553765513,10.30890602,83.009,82.977,10.8523]
[1771553765716,10.30890602,83.009,82.961,9.83861415]
[1771553766714,10.30890602,83.009,82.971,9.83861415]
[1771553767920,10.30890602,83.009,82.973,10.12724918]
[1771553768419,3.13517656,83.01,82.954,71.0]
[1771553768420,9.7064719,83.006,82.966,10.12724918]
[1771553768619,3.13517656,83.0,82.966,10.12724918]
[1771553774023,3.13517656,83.0,82.969,10.12724918]
[1771553780822,9.7064719,83.006,82.969,10.12724918]
[1771553781128,9.7064719,83.016,82.969,10.12724918]
[1771553781427,9.7064719,83.019,82.971,10.12724918]
[1771553781627,3.13517656,83.02,82.971,10.12724918]
[1771553781821,3.13517656,83.02,82.981,10.12724918]
[1771553782029,9.7064719,83.019,82.981,10.12724918]
[1771553782427,9.7064719,83.009,82.97,10.8531]
[1771553782728,9.7064719,83.009,82.97,20.98034918]
[1771553782929,9.7064719,83.009,82.971,10.12724918]
[1771553784524,3.13517656,82.99,82.954,10.12724918]
[1771553784732,9.7064719,82.989,82.954,10.12724918]
[1771553796441,9.7064719,82.987,82.945,10.12724918]
[1771553797242,9.7064719,82.987,82.946,10.8563]
[1771553797442,9.7064719,82.987,82.947,8.53720377]
[1771553797943,9.7064719,82.987,82.95,8.53720377]
[1771553798847,9.7064719,82.987,82.953,8.53720377]
[1771553803753,9.17257428,83.03,82.94,469.93270646]
[1771553803754,8.57462207,82.979,82.94,466.7975299]
[1771553803955,9.17257428,83.023,82.94,466.7975299]
[1771553803956,8.57462207,82.969,82.94,466.7975299]
[1771553804152,8.57462207,82.969,82.937,10.8574]
[1771553805552,8.57462207,82.979,82.943,8.53720377]
[1771553806650,3.13517656,82.98,82.945,8.53720377]
[1771553807547,3.13517656,82.98,82.947,8.53720377]
[1771553807843,8.57462207,82.998,82.951,8.53720377]
[1771553808047,8.57462207,83.009,82.971,19.39020377]
[1771553810043,3.13683149,83.0,82.971,19.39020377]
[1771553810851,10.8474,83.015,82.929,100.41474666]
[1771553810852,8.57462207,83.023,82.981,8.53720377]
[1771553811059,8.57462207,83.019,82.981,8.53720377]
[1771553811356,3.13683149,83.01,82.981,8.53720377]
[1771553811858,8.57462207,83.009,82.961,8.53720377]
[1771553812754,8.57462207,83.009,82.975,10.8525]
[1771553813861,8.57462207,83.009,82.971,8.53720377]
[1771553814163,8.57462207,83.009,82.93,71.0]
[1771553814164,8.57462207,82.999,82.961,8.53720377]
[1771553816265,8.57462207,82.999,82.963,8.53720377]
[1771553817163,3.13683149,82.99,82.952,8.53720377]
[1771553818061,8.57462207,82.999,82.952,8.53720377]
[1771553818862,168.5834,83.091,82.952,8.53720377]
[1771553818863,11.71145356,83.01,82.96,3.13683149]
[1771553819067,8.57462207,83.009,82.961,8.53720377]
[1771553819765,8.57462207,83.009,82.965,19.39100377]
[1771553820365,8.57462207,83.009,82.966,8.53720377]
[1771553820959,8.57462207,83.009,82.967,10.8535]
[1771553821866,8.57462207,83.009,82.972,8.53720377]
[1771553822459,3.13683149,83.01,82.972,8.53720377]
[1771553822665,8.23246271,83.025,82.981,8.05554465]
[1771553823665,8.23246271,83.025,82.992,10.8503]
[1771553823965,8.23246271,83.035,82.993,8.05554465]
[1771553824161,8.23246271,83.029,82.993,8.05554465]
[1771553829967,8.36014312,83.027,82.993,8.05554465]
[1771553835068,9.15185835,83.068,82.995,7.97361685]
[1771553835069,8.36014312,83.033,82.995,7.97361685]
[1771553835366,8.36014312,83.033,82.99,3.13683149]
[1771553835572,3.13683149,83.03,82.991,7.97361685]
[1771553835773,8.36014312,83.029,82.991,7.97361685]
[1771553839674,8.36014312,83.019,82.98,7.97361685]
[1771553840779,19.20704312,83.019,82.98,7.97361685]
[1771553840974,19.20704312,83.019,82.98,11.11044834]
[1771553841281,19.20704312,83.019,82.981,7.97361685]
[1771553841580,8.36014312,83.019,82.981,7.97361685]
[1771553841771,10.846,83.026,82.981,7.97361685]
[1771553842279,19.20614312,83.026,82.981,7.97361685]
[1771553843280,8.35160926,83.025,82.991,7.97361685]
[1771553843577,8.35160926,83.025,82.981,7.97361685]
[1771553844680,8.35160926,83.025,82.984,7.97361685]
[1771553845784,8.35160926,83.025,82.986,7.97361685]
[1771553846985,8.35160926,83.025,82.989,7.97361685]
[1771553851389,7.64799749,83.024,82.989,7.97361685]
[1771553852195,7.57001644,83.018,82.979,7.97361685]
[1771553858406,10.8457,83.028,82.983,6.65924188]
[1771553859805,10.8457,83.028,82.988,6.65924188]
[1771553860808,17.75832979,83.028,82.988,6.65924188]
[1771553863009,6.75705782,83.027,82.988,6.65924188]
[1771553865308,6.58369695,83.025,82.988,6.65924188]
[1771553865610,3.13683149,83.02,82.988,6.65924188]
[1771553865810,6.58369695,83.019,82.988,6.65924188]
[1771553868904,13.48886887,83.056,82.971,71.0]
[1771553868905,6.41016839,83.009,82.971,71.0]
[1771553869504,6.41016839,83.009,82.971,77.65924188]
[1771553870309,6.41016839,83.009,82.972,6.65924188]
[1771553871713,6.29071237,83.008,82.972,6.65924188]
[1771553872708,17.07754353,83.007,82.972,6.65924188]
[1771553872909,6.22904353,83.007,82.972,6.65924188]
[1771553873112,3.13660685,83.01,82.972,6.65924188]
[1771553873514,6.14494867,83.018,82.972,6.65924188]
[1771553875320,3.13660685,83.01,82.972,6.65924188]
[1771553875618,9.13742565,83.01,82.972,6.65924188]
[1771553875820,6.0008188,83.009,82.972,6.65924188]
[1771553876919,6.0008188,83.009,82.974,6.65924188]
[1771553879917,3.13660685,83.01,82.974,6.65924188]
[1771553880619,16.56938377,83.019,82.974,6.65924188]
[1771553881021,5.72248377,83.018,82.974,6.65924188]
[1771553882717,10.8472,83.016,82.974,6.65924188]
[1771553884521,16.48539148,83.016,82.974,6.65924188]
[1771553885222,8.72176534,83.04,82.99,3.13660685]
[1771553885420,5.58515849,83.051,83.001,6.00748865]
[1771553885622,3.13660685,83.06,83.011,6.00748865]
[1771553886025,3.13660685,83.06,83.016,6.00748865]
[1771553886324,8.66929111,83.06,83.016,6.00748865]
[1771553886521,5.53268426,83.071,83.03,6.00748865]
[1771553886717,3.13660685,83.07,83.03,6.00748865]
[1771553887321,10.8393,83.077,83.033,6.05406305]
[1771553891729,36.16,83.124,82.99,62.0]
[1771553891730,5.16494475,83.093,83.051,6.05406305]
[1771553891929,3.13660685,83.1,83.051,6.05406305]
[1771553892829,3.13660685,83.1,83.05,3.13660685]
[1771553892830,5.16494475,83.104,83.061,6.05406305]
[1771553893731,5.16494475,83.104,83.001,21.6982]
[1771553893732,3.13660685,83.12,83.071,6.05406305]
[1771553894822,3.13660685,83.12,83.077,6.05406305]
[1771553895024,5.09655044,83.128,83.077,6.05406305]
[1771553896325,5.09655044,83.128,83.079,6.05406305]